fUST/lending_fUST_20250309
["ID","MTS","AMOUNT","RATE_DAILY","PERIOD"]
[355683330,1741456238675,-500.0,0.00046849,120]
[355683331,1741456238684,-3429.91,0.00046849,7]
[355683332,1741456238694,-3257.46,0.00046849,120]
[355683333,1741456238704,-532.11,0.00046849,120]
[355683334,1741456238714,-500.0,0.00046849,120]
[355683335,1741456238723,-500.0,0.00046849,120]
[355683336,1741456238733,-500.0,0.00046849,120]
[355683337,1741456238743,-500.0,0.00046849,120]
[355683338,1741456238752,-500.0,0.00046849,120]
[355683339,1741456238762,-9999.0,0.00046849,2]
[355683340,1741456238771,-881.4,0.00046849,2]
[355683341,1741456238780,-500.0,0.00046849,2]
[355683342,1741456238789,-500.0,0.00046849,120]
[355683343,1741456238799,-1000.0,0.00046852,10]
[355683344,1741456238808,-1000.0,0.00046858,120]
[355683345,1741456238818,-457.958313,0.00046904,2]
[355683346,1741456238828,-500.0,0.00046971,10]
[355683347,1741456238837,-500.0,0.00046973,10]
[355683348,1741456238847,-607.92363618,0.00046995,10]
[355683349,1741456238856,-500.0,0.00046995,10]
[355683350,1741456238865,-500.0,0.00046995,10]
[355683351,1741456238875,-152.32538602,0.00046995,10]
[355683352,1741456238885,-500.0,0.00046995,10]
[355683353,1741456238895,-653.25,0.00047112,120]
[355683354,1741456238906,-16028.6102403,0.00047113,4]
[355683355,1741456238916,-500.0,0.0004712,120]
[355683356,1741456238926,-814.95,0.00047121,120]
[355683357,1741456238936,-198.8,0.00047122,30]
[355683358,1741456238946,-500.0,0.00047122,120]
[355683359,1741456238955,-500.0,0.00047123,120]
[355683360,1741456238967,-629.88,0.00047123,120]
[355683361,1741456238977,-500.0,0.00047123,120]
[355683362,1741456238986,-723.0,0.00047123,120]
[355683363,1741456238996,-500.0,0.00047123,120]
[355683364,1741456239006,-490.77678941,0.00047123,120]
[355683365,1741456239015,-1045.54,0.00047123,120]
[355683366,1741456239026,-1173.03,0.00047123,120]
[355683367,1741456239035,-500.0,0.00047123,120]
[355683368,1741456239047,-500.0,0.00047123,120]
[355683369,1741456239056,-500.0,0.00047123,120]
[355683370,1741456239065,-500.0,0.00047123,120]
[355683371,1741456239075,-775.37,0.00047123,120]
[355683372,1741456239085,-624.25,0.00047123,120]
[355683373,1741456239094,-580.81,0.00047123,120]
[355683374,1741456239104,-3429.91,0.00047123,7]
[355683375,1741456239113,-3257.46,0.00047123,120]
[355683376,1741456239122,-500.0,0.00047123,120]
[355683377,1741456239132,-500.0,0.00047123,120]
[355683378,1741456239143,-566.66,0.00047123,120]
[355683379,1741456239152,-6302.0,0.00047123,2]
[355683380,1741456239161,-881.4,0.00047123,2]
[355683381,1741456239170,-500.0,0.00047123,2]
[355683382,1741456239180,-500.0,0.00047123,120]
[355683383,1741456239191,-1662.78546507,0.00047314,28]
[355683384,1741456239200,-457.958313,0.00047333,2]
[355683385,1741456239215,-1309.02,0.00047335,120]
[355683386,1741456239224,-500.0,0.00047373,10]
[355683387,1741456239234,-501.46404722,0.00047373,10]
[355683388,1741456239243,-16028.6102403,0.00047387,4]
[355683389,1741456239255,-814.95,0.00047395,120]
[355683390,1741456239265,-500.0,0.00047395,120]
[355683391,1741456239274,-653.25,0.00047396,120]
[355683392,1741456239284,-500.0,0.00047396,120]
[355683393,1741456239297,-18271.23669914,0.00047397,43]
[355683394,1741456239306,-500.0,0.00047397,120]
[355683395,1741456239316,-302.52,0.00047397,120]
[355683396,1741456239326,-723.0,0.00047397,120]
[355683397,1741456239336,-500.0,0.00047397,120]
[355683398,1741456239346,-1045.54,0.00047397,120]
[355683399,1741456239355,-1173.03,0.00047397,120]
[355683400,1741456239365,-367.6,0.00047397,120]
[355683401,1741456239375,-249.62,0.00047397,120]
[355683402,1741456239385,-500.0,0.00047397,120]
[355683403,1741456239395,-500.0,0.00047397,120]
[355683404,1741456239404,-775.37,0.00047397,120]
[355683405,1741456239414,-3429.91,0.00047397,7]
[355683406,1741456239423,-3257.46,0.00047397,120]
[355683407,1741456239433,-500.0,0.00047397,120]
[355683408,1741456239443,-218.57,0.00047397,120]
[355683409,1741456239453,-881.4,0.00047397,2]
[355683410,1741456239463,-500.0,0.00047397,2]
[355683411,1741456239472,-5000.0,0.00047397,60]
[355683412,1741456239482,-4423.369061,0.00047397,60]
[355683413,1741456239491,-1000.0,0.00047406,120]
[355683414,1741456239501,-653.25,0.00047668,120]
[355683415,1741456239511,-814.95,0.00047669,120]
[355683416,1741456239521,-500.0,0.0004767,120]
[355683417,1741456239530,-3196.39004706,0.00047671,43]
[355683418,1741456239540,-500.0,0.00047671,120]
[355683419,1741456239549,-723.0,0.00047671,120]
[355683420,1741456239559,-500.0,0.00047671,120]
[355683421,1741456239568,-1045.54,0.00047671,120]
[355683422,1741456239578,-1173.03,0.00047671,120]
[355683423,1741456239588,-241.35,0.00047671,120]
[355683424,1741456239598,-500.0,0.00047671,120]
[355683425,1741456239607,-775.37,0.00047671,120]
[355683426,1741456239617,-3429.91,0.00047671,7]
[355683427,1741456239626,-3257.46,0.00047671,120]
[355683428,1741456239635,-500.0,0.00047671,120]
[355683429,1741456239645,-881.4,0.00047671,2]
[355683430,1741456239654,-500.0,0.00047671,2]
[355683431,1741456239664,-449.34224257,0.00047743,120]
[355683432,1741456239674,-457.958313,0.00047761,2]
[355683433,1741456239684,-510.0239033,0.00047921,4]
[355683434,1741456239694,-1000.0,0.0004794,6]
[355683435,1741456239704,-653.25,0.00047943,120]
[355683436,1741456239718,-814.95,0.00047943,120]
[355683437,1741456239728,-500.0,0.00047944,120]
[355683438,1741456239738,-500.0,0.00047945,120]
[355683439,1741456239747,-723.0,0.00047945,120]
[355683440,1741456239757,-500.0,0.00047945,120]
[355683441,1741456239766,-1045.54,0.00047945,120]
[355683442,1741456239776,-1173.03,0.00047945,120]
[355683443,1741456239785,-500.0,0.00047945,120]
[355683444,1741456239797,-775.37,0.00047945,120]
[355683445,1741456239806,-3429.91,0.00047945,7]
[355683446,1741456239816,-3257.46,0.00047945,120]
[355683447,1741456239825,-500.0,0.00047945,120]
[355683448,1741456239835,-881.4,0.00047945,2]
[355683449,1741456239844,-228.37739,0.00047945,2]
[355683450,1741456239853,-1000.0,0.00047954,120]
[355683451,1741456239863,-152.0,0.00048,90]
[355683452,1741456239873,-153.8,0.000481,45]
[355683453,1741456239882,-153.8,0.000481,45]
[355683454,1741456239892,-153.8,0.000481,45]
[355683455,1741456239902,-151.0,0.000481,24]
[355683456,1741456239912,-1140.86428045,0.00048139,2]
[355683457,1741456239921,-1662.78546507,0.00048153,28]
[355683458,1741456239931,-1309.02,0.00048157,120]
[355683460,1741456239941,-457.958313,0.0004819,2]
[355683461,1741456239950,-16028.6102403,0.00048209,4]
[355683462,1741456239959,-500.0,0.00048216,120]
[355683463,1741456239968,-814.95,0.00048217,120]
[355683464,1741456239978,-653.25,0.00048218,120]
[355683465,1741456239987,-500.0,0.00048219,120]
[355683466,1741456239996,-723.0,0.00048219,120]
[355683467,1741456240005,-500.0,0.00048219,120]
[355683468,1741456240015,-1045.54,0.00048219,120]
[355683469,1741456240024,-1173.03,0.00048219,120]
[355683470,1741456240033,-500.0,0.00048219,120]
[355683471,1741456240042,-775.37,0.00048219,120]
[355683472,1741456240052,-3429.91,0.00048219,7]
[355683473,1741456240061,-3257.46,0.00048219,120]
[355683474,1741456240070,-500.0,0.00048219,120]
[355683475,1741456240079,-881.4,0.00048219,2]
[355683476,1741456240089,-500.0,0.00048236,96]
[355683477,1741456240098,-1012.61,0.00048239,7]
[355683478,1741456240107,-1012.61,0.00048239,7]
[355683479,1741456240116,-1012.61,0.00048239,7]
[355683480,1741456240125,-1012.61,0.00048239,7]
[355683481,1741456240134,-1012.61,0.00048239,7]
[355683482,1741456240143,-1012.61,0.00048239,7]
[355683483,1741456240152,-1012.61,0.00048239,7]
[355683484,1741456240162,-1012.61,0.00048239,7]
[355683485,1741456240171,-1012.61,0.00048239,7]
[355683486,1741456240180,-1012.61,0.00048239,7]
[355683487,1741456240190,-144257.492163,0.0004824,4]
[355683488,1741456240199,-500.0,0.00048249,120]
[355683489,1741456240211,-500.0,0.00048249,120]
[355683490,1741456240222,-181.31832079,0.00048249,120]
[355683491,1741456240231,-714327.17052317,0.0004825,30]
[355683492,1741456240241,-500.0,0.00048273,2]
[355683493,1741456240251,-500.0,0.00048273,10]
[355683494,1741456240261,-500.0,0.00048273,10]
[355683495,1741456240271,-500.0,0.00048273,10]
[355683496,1741456240280,-500.0,0.00048273,10]
[355683497,1741456240290,-500.0,0.00048273,10]
[355683498,1741456240300,-500.0,0.00048273,2]
[355683500,1741456240309,-500.0,0.00048273,10]
[355683501,1741456240318,-500.0,0.00048273,10]
[355683502,1741456240328,-500.0,0.00048273,10]
[355683503,1741456240339,-500.0,0.00048273,10]
[355683504,1741456240349,-500.0,0.00048273,10]
[355683505,1741456240359,-151.0,0.0004829,120]
[355683506,1741456240369,-151.0,0.0004829,120]
[355683507,1741456240379,-151.0,0.0004829,120]
[355683508,1741456240389,-151.0,0.0004829,120]
[355683509,1741456240399,-151.0,0.0004829,120]
[355683510,1741456240410,-151.0,0.0004829,120]
[355683511,1741456240420,-151.0,0.0004829,120]
[355683512,1741456240430,-222000.0,0.0004829,2]
[355683513,1741456240439,-55555.0,0.0004829,120]
[355683514,1741456240449,-2000.0,0.00048304,2]
[355683515,1741456240459,-500.0,0.00048336,91]
[355683516,1741456240468,-3000.0,0.0004835,2]
[355683517,1741456240478,-1000.0,0.0004835,60]
[355683518,1741456240488,-653.25,0.00048397,120]
[355683519,1741456240498,-151.0,0.000484,23]
[355683520,1741456240508,-11260.50556869,0.000484,2]
[355683521,1741456240518,-653.25,0.000484,120]
[355683522,1741456240528,-653.25,0.000484,120]
[355683523,1741456240538,-653.25,0.00048408,120]
[355683525,1741456240549,-653.25,0.00048409,120]
[355683527,1741456240558,-653.25,0.00048409,120]
[355683529,1741456240568,-653.25,0.00048409,120]
[355683531,1741456240577,-653.25,0.00048409,120]
[355683533,1741456240586,-653.25,0.00048409,120]
[355683535,1741456240595,-653.25,0.00048409,120]
[355683537,1741456240604,-653.25,0.00048409,120]
[355683539,1741456240614,-653.25,0.00048409,120]
[355683541,1741456240623,-653.25,0.00048409,120]
[355683543,1741456240633,-653.25,0.00048409,120]
[355683545,1741456240642,-653.25,0.00048409,120]
[355683547,1741456240651,-653.36467599,0.00048409,120]
[355683550,1741456240661,-500.0,0.00048436,100]
[355683552,1741456240671,-151.0,0.0004844,120]
[355683553,1741456240681,-151.0,0.0004844,120]
[355683555,1741456240690,-151.0,0.0004844,120]
[355683557,1741456240699,-151.0,0.0004844,120]
[355683559,1741456240708,-151.0,0.0004844,120]
[355683562,1741456240718,-151.0,0.0004844,120]
[355683564,1741456240728,-151.0,0.0004845,120]
[355683566,1741456240738,-151.0,0.0004845,120]
[355683568,1741456240747,-151.0,0.0004845,120]
[355683578,1741456240840,-151.0,0.0004845,120]
[355683580,1741456240850,-151.0,0.0004845,120]
[355683582,1741456240860,-1293.114374,0.0004845,120]
[355683584,1741456240870,-1293.114374,0.0004845,120]
[355683586,1741456240880,-151.0,0.0004845,120]
[355683588,1741456240890,-151.0,0.0004845,120]
[355683590,1741456240900,-151.0,0.0004845,120]
[355683592,1741456240909,-151.0,0.0004845,120]
[355683594,1741456240919,-151.0,0.0004845,120]
[355683596,1741456240928,-151.0,0.0004845,120]
[355683598,1741456240938,-268.344844,0.0004845,120]
[355683600,1741456240947,-151.0,0.0004845,120]
[355683602,1741456240957,-151.0,0.0004845,120]
[355683604,1741456240966,-814.95,0.00048491,120]
[355683606,1741456240975,-198.8,0.00048492,30]
[355683608,1741456240984,-500.0,0.00048493,120]
[355683610,1741456240994,-723.0,0.00048493,120]
[355683612,1741456241003,-500.0,0.00048493,120]
[355683614,1741456241013,-1045.54,0.00048493,120]
[355683616,1741456241022,-1173.03,0.00048493,120]
[355683618,1741456241031,-500.0,0.00048493,120]
[355683620,1741456241040,-775.37,0.00048493,120]
[355683622,1741456241052,-3429.91,0.00048493,7]
[355683624,1741456241062,-3257.46,0.00048493,120]
[355683626,1741456241072,-500.0,0.00048493,120]
[355683628,1741456241081,-881.4,0.00048493,2]
[355683630,1741456241091,-1118036.80966817,0.000485,120]
[355683632,1741456241100,-151.0,0.000485,120]
[355683634,1741456241110,-151.0,0.000485,120]
[355683636,1741456241119,-151.0,0.000485,110]
[355683638,1741456241129,-151.0,0.000485,120]
[355683640,1741456241138,-151.0,0.000485,120]
[355683642,1741456241148,-151.0,0.000485,120]
[355683644,1741456241157,-151.0,0.000485,120]
[355683646,1741456241167,-151.0,0.000485,120]
[355683648,1741456241177,-151.0,0.000485,120]
[355683650,1741456241186,-151.0,0.000485,120]
[355683652,1741456241195,-151.0,0.000485,120]
[355683654,1741456241207,-151.0,0.000485,120]
[355683656,1741456241221,-151.595689,0.000485,120]
[355683658,1741456241230,-1293.114374,0.000485,120]
[355683660,1741456241239,-1293.114374,0.000485,120]
[355683662,1741456241251,-151.0,0.000485,120]
[355683664,1741456241261,-151.0,0.000485,120]
[355683666,1741456241270,-151.0,0.000485,120]
[355683668,1741456241280,-151.0,0.000485,120]
[355683670,1741456241291,-151.0,0.000485,120]
[355683672,1741456241302,-151.0,0.000485,120]
[355683674,1741456241312,-180.385913,0.000485,120]
[355683676,1741456241322,-151.0,0.000485,120]
[355683678,1741456241332,-1000.0,0.00048502,120]
[355683680,1741456241341,-151.0,0.0004851,30]
[355683682,1741456241351,-500.0,0.00048536,93]
[355683684,1741456241361,-1115.35,0.000486,30]
[355683686,1741456241370,-880.36,0.000486,30]
[355683688,1741456241379,-500.0,0.00048636,100]
[355683690,1741456241389,-352.0,0.00048693,30]
[355683692,1741456241398,-352.0,0.00048693,30]
[355683694,1741456241408,-352.0,0.00048693,30]
[355683696,1741456241417,-352.0,0.00048693,30]
[355683698,1741456241427,-352.0,0.00048693,30]
[355683700,1741456241437,-352.0,0.00048693,30]
[355683703,1741456241447,-352.0,0.00048693,30]
[355683705,1741456241456,-352.0,0.00048693,30]
[355683707,1741456241466,-352.0,0.00048693,30]
[355683709,1741456241475,-316.0,0.00048693,30]
[355683711,1741456241484,-316.0,0.00048693,30]
[355683713,1741456241494,-352.0,0.00048693,30]
[355683715,1741456241504,-316.0,0.00048693,30]
[355683717,1741456241514,-352.0,0.00048693,30]
[355683719,1741456241523,-321.46638058,0.00048693,30]
[355683721,1741456241533,-352.0,0.00048693,30]
[355683723,1741456241543,-352.0,0.00048693,30]
[355683724,1741456241556,-352.0,0.00048693,30]
[355683726,1741456241566,-352.0,0.00048693,30]
[355683729,1741456241576,-352.0,0.00048693,30]
[355683731,1741456241585,-352.0,0.00048693,30]
[355683733,1741456241595,-352.0,0.00048693,30]
[355683735,1741456241604,-352.0,0.00048693,30]
[355683737,1741456241614,-352.0,0.00048693,30]
[355683739,1741456241624,-352.0,0.00048693,30]
[355683741,1741456241633,-352.0,0.00048693,30]
[355683743,1741456241642,-491.03717399,0.00048693,30]
[355683745,1741456241651,-800.0,0.00048731,14]
[355683747,1741456241661,-500.0,0.00048736,92]
[355683749,1741456241670,-814.95,0.00048765,120]
[355683751,1741456241680,-500.0,0.00048767,120]
[355683753,1741456241690,-723.0,0.00048767,120]
[355683755,1741456241700,-500.0,0.00048767,120]
[355683757,1741456241710,-1045.54,0.00048767,120]
[355683759,1741456241720,-1173.03,0.00048767,120]
[355683761,1741456241729,-500.0,0.00048767,120]
[355683763,1741456241739,-775.37,0.00048767,120]
[355683765,1741456241748,-3429.91,0.00048767,7]
[355683767,1741456241758,-3257.46,0.00048767,120]
[355683769,1741456241767,-500.0,0.00048767,120]
[355683771,1741456241777,-881.4,0.00048767,2]
[355683773,1741456241787,-800.0,0.00048788,14]
[355683775,1741456241797,-800.0,0.00048792,14]
[355683777,1741456241807,-2551.3721584,0.000488,7]
[355683779,1741456241816,-500.0,0.00048836,92]
[355683781,1741456241826,-800.0,0.00048841,14]
[355683783,1741456241835,-814.20429918,0.00048847,14]
[355683785,1741456241847,-220.00000001,0.0004888,120]
[355683788,1741456241861,-209.5950654,0.00048899,2]
[355683790,1741456241876,-1533.0,0.000489,120]
[355683792,1741456241889,-30000.0,0.000489,2]
[355683795,1741456241902,-540.0,0.00048935,2]
[355683797,1741456241913,-1903.0,0.00048935,2]
[355683799,1741456241924,-2246.0,0.00048935,2]
[355683801,1741456241937,-398.0,0.00048935,2]
[355683804,1741456241950,-500.0,0.00048936,90]
[355683806,1741456241962,-150.0,0.00048973,10]
[355683808,1741456241975,-1309.02,0.00048979,120]
[355683811,1741456241988,-1662.78546507,0.00048993,28]
[355683813,1741456242000,-126535.43012269,0.00049,120]
[355683816,1741456242014,-7263.0,0.00049,2]
[355683818,1741456242027,-850.0,0.00049,60]
[355683820,1741456242041,-11423.0,0.00049,120]
[355683822,1741456242053,-162.89098081,0.00049,120]
[355683825,1741456242064,-75000.0,0.00049,120]
[355683827,1741456242077,-3927.36132135,0.00049,120]
[355683829,1741456242089,-151.0,0.00049,30]
[355683832,1741456242101,-1000.0,0.00049,60]
[355683834,1741456242114,-151.0,0.00049,120]
[355683837,1741456242128,-1999.95,0.00049,120]
[355683839,1741456242139,-296.388449,0.00049,120]
[355683841,1741456242151,-151.0,0.00049,110]
[355683843,1741456242161,-151.0,0.00049,120]
[355683845,1741456242172,-151.0,0.00049,120]
[355683847,1741456242185,-151.000001,0.00049,120]
[355683850,1741456242197,-269.24891,0.00049,120]
[355683852,1741456242210,-164.232773,0.00049,120]
[355683854,1741456242223,-151.0,0.00049,120]
[355683857,1741456242236,-154.388848,0.00049,120]
[355683859,1741456242247,-151.0,0.00049,120]
[355683861,1741456242260,-1293.114374,0.00049,120]
[355683864,1741456242272,-1293.114374,0.00049,120]
[355683866,1741456242285,-216.733488,0.00049,120]
[355683868,1741456242300,-151.0,0.00049,120]
[355683871,1741456242313,-151.0,0.00049,120]
[355683873,1741456242323,-151.0,0.00049,120]
[355683875,1741456242333,-151.0,0.00049,120]
[355683877,1741456242344,-151.0,0.00049,120]
[355683879,1741456242356,-168.758984,0.00049,120]
[355683881,1741456242369,-500.0,0.00049036,100]
[355683884,1741456242383,-292.146144,0.00049037,120]
[355683886,1741456242395,-292.146144,0.00049037,120]
[355683888,1741456242405,-156.456156,0.00049037,120]
[355683890,1741456242415,-814.95,0.00049039,120]
[355683892,1741456242426,-151.0,0.00049041,120]
[355683894,1741456242438,-408.09217083,0.00049041,120]
[355683897,1741456242449,-520.94119737,0.00049041,2]
[355683899,1741456242461,-500.0,0.00049041,2]
[355683901,1741456242471,-723.0,0.00049041,120]
[355683903,1741456242482,-334.01136488,0.00049041,120]
[355683905,1741456242493,-1045.54,0.00049041,120]
[355683908,1741456242504,-1173.03,0.00049041,120]
[355683910,1741456242515,-500.0,0.00049041,120]
[355683912,1741456242526,-775.37,0.00049041,120]
[355683914,1741456242537,-3429.91,0.00049041,7]
[355683916,1741456242548,-3257.46,0.00049041,120]
[355683919,1741456242559,-151.0,0.00049041,120]
[355683921,1741456242570,-151.0,0.00049041,120]
[355683923,1741456242581,-500.0,0.00049041,120]
[355683925,1741456242592,-150.45,0.00049041,120]
[355683927,1741456242603,-150.45,0.00049041,120]
[355683929,1741456242614,-500.0,0.00049041,120]
[355683931,1741456242624,-881.4,0.00049041,2]
[355683933,1741456242635,-1000.0,0.0004905,120]
[355683935,1741456242646,-230.365613,0.0004905,120]
[355683938,1741456242656,-151.0,0.0004905,110]
[355683940,1741456242667,-266.275712,0.0004905,120]
[355683942,1741456242677,-151.0,0.0004905,120]
[355683944,1741456242689,-151.0,0.0004905,120]
[355683946,1741456242701,-151.0,0.0004905,120]
[355683948,1741456242711,-1293.114374,0.0004905,120]
[355683951,1741456242723,-1293.114374,0.0004905,120]
[355683953,1741456242733,-151.0,0.0004905,120]
[355683955,1741456242744,-151.0,0.0004905,120]
[355683957,1741456242756,-151.0,0.0004905,120]
[355683959,1741456242766,-22445.78596588,0.00049051,30]
[355683961,1741456242777,-254.256,0.0004906,2]
[355683963,1741456242788,-280.16,0.0004906,2]
[355683966,1741456242801,-500.0,0.00049068,2]
[355683968,1741456242813,-150.45,0.00049068,120]
[355683970,1741456242824,-150.45,0.00049068,120]
[355683972,1741456242835,-500.0,0.00049068,120]
[355683974,1741456242846,-150.11434886,0.00049073,10]
[355683977,1741456242858,-500.0,0.00049096,2]
[355683981,1741456242868,-193.47215508,0.00049096,120]
[355683984,1741456242879,-150.45,0.00049096,120]
[355683986,1741456242889,-500.0,0.00049096,120]
[355683989,1741456242900,-500.0,0.00049123,2]
[355683993,1741456242912,-150.45,0.00049123,120]
[355683997,1741456242923,-500.0,0.00049123,120]
[355684002,1741456242935,-500.0,0.00049136,94]
[355684005,1741456242945,-500.0,0.00049151,2]
[355684008,1741456242955,-156.09279457,0.00049151,120]
[355684012,1741456242966,-500.0,0.00049151,120]
[355684014,1741456242977,-500.0,0.00049178,2]
[355684017,1741456242987,-500.0,0.00049178,120]
[355684020,1741456242998,-200.0,0.00049186,120]
[355684023,1741456243008,-200.0,0.00049187,120]
[355684040,1741456243146,-3397.42918489,0.000492,120]
[355684042,1741456243156,-21665.0,0.000492,120]
[355684044,1741456243166,-500.0,0.00049205,2]
[355684046,1741456243176,-500.0,0.00049205,120]
[355684048,1741456243186,-500.0,0.00049233,2]
[355684050,1741456243196,-500.0,0.00049233,120]
[355684052,1741456243207,-500.0,0.00049236,100]
[355684054,1741456243219,-500.0,0.0004926,2]
[355684056,1741456243229,-500.0,0.0004926,120]
[355684058,1741456243239,-1295.176433,0.0004928,21]
[355684060,1741456243248,-1000.0,0.00049287,120]
[355684062,1741456243260,-1000.0,0.00049287,120]
[355684064,1741456243270,-1000.0,0.00049287,120]
[355684066,1741456243280,-1000.0,0.00049287,120]
[355684068,1741456243290,-1000.0,0.00049287,120]
[355684070,1741456243302,-1000.0,0.00049287,120]
[355684072,1741456243312,-1000.0,0.00049287,120]
[355684074,1741456243322,-1000.0,0.00049287,120]
[355684076,1741456243331,-1000.0,0.00049287,120]
[355684078,1741456243340,-1000.0,0.00049287,120]
[355684080,1741456243350,-1000.0,0.00049287,120]
[355684082,1741456243359,-1000.0,0.00049287,120]
[355684084,1741456243369,-538.58415534,0.00049287,120]
[355684086,1741456243379,-500.0,0.00049288,2]
[355684088,1741456243389,-500.0,0.00049288,120]
[355684090,1741456243399,-1691.89401492,0.0004929,23]
[355684092,1741456243408,-260.64,0.000493,2]
[355684095,1741456243418,-1000.0,0.000493,21]
[355684097,1741456243428,-814.95,0.00049313,120]
[355684098,1741456243437,-500.0,0.00049315,2]
[355684101,1741456243447,-686.31979919,0.00049315,120]
[355684103,1741456243457,-500.0,0.00049315,7]
[355684105,1741456243467,-723.0,0.00049315,120]
[355684107,1741456243476,-1045.54,0.00049315,120]
[355684108,1741456243485,-1173.03,0.00049315,120]
[355684110,1741456243494,-500.0,0.00049315,120]
[355684112,1741456243504,-775.37,0.00049315,120]
[355684114,1741456243514,-3429.91,0.00049315,7]
[355684117,1741456243524,-3257.46,0.00049315,120]
[355684119,1741456243533,-500.0,0.00049315,120]
[355684121,1741456243543,-881.4,0.00049315,2]
[355684123,1741456243552,-200.11684612,0.00049315,10]
[355684126,1741456243562,-1595.675753,0.00049315,120]
[355684128,1741456243572,-1595.675753,0.00049315,120]
[355684131,1741456243581,-1595.675753,0.00049315,120]
[355684132,1741456243591,-1595.675753,0.00049315,120]
[355684134,1741456243600,-1595.675753,0.00049315,120]
[355684136,1741456243609,-1595.675753,0.00049315,120]
[355684139,1741456243619,-1361.502269,0.00049315,7]
[355684141,1741456243629,-1361.502269,0.00049315,7]
[355684143,1741456243639,-1361.502269,0.00049315,7]
[355684145,1741456243648,-1361.502269,0.00049315,7]
[355684147,1741456243659,-1361.502269,0.00049315,7]
[355684148,1741456243669,-1361.502269,0.00049315,7]
[355684150,1741456243678,-1000.0,0.0004932,21]
[355684153,1741456243688,-500.0,0.00049336,92]
[355684155,1741456243698,-1000.0,0.0004934,21]
[355684157,1741456243707,-500.0,0.00049342,2]
[355684159,1741456243717,-2501.6172422,0.0004935,2]
[355684161,1741456243727,-1000.0,0.0004936,21]
[355684163,1741456243737,-500.0,0.0004937,2]
[355684165,1741456243747,-150.0,0.00049373,10]
[355684167,1741456243756,-151.0,0.00049377,120]
[355684169,1741456243766,-151.0,0.00049377,120]
[355684171,1741456243775,-22445.78596588,0.00049377,30]
[355684173,1741456243785,-1000.0,0.0004938,21]
[355684175,1741456243796,-200.0,0.00049392,120]
[355684177,1741456243807,-500.0,0.00049397,2]
[355684179,1741456243816,-1000.0,0.000494,21]
[355684181,1741456243827,-500.095823,0.000494,115]
[355684183,1741456243837,-1000.0,0.0004942,21]
[355684185,1741456243846,-500.0,0.00049425,2]
[355684187,1741456243855,-200.0,0.00049433,120]
[355684188,1741456243865,-500.0,0.00049436,94]
[355684190,1741456243875,-1000.0,0.0004944,21]
[355684192,1741456243884,-500.0,0.00049452,2]
[355684194,1741456243893,-1000.0,0.0004946,21]
[355684196,1741456243903,-500.0,0.00049473,10]
[355684198,1741456243912,-500.0,0.00049479,2]
[355684200,1741456243921,-1000.0,0.0004948,21]
[355684202,1741456243930,-1072.815153,0.0004948,21]
[355684204,1741456243939,-151.0,0.00049491,120]